fUSD/lending_fUSD_20240828
["ID","MTS","AMOUNT","RATE_DAILY","PERIOD"]
[336399695,1724808632785,-687.96190226,0.00010699,2]
[336399696,1724808632794,-500.0,0.00010713,2]
[336399697,1724808632804,-1264.51444797,0.0001073,2]
[336399698,1724808632814,-1500.0,0.00010767,2]
[336399699,1724808632825,-150.0,0.0001078,2]
[336399700,1724808632835,-1500.0,0.00010796,2]
[336399701,1724808632844,-506.70161208,0.00010798,2]
[336399702,1724808632854,-7500.0,0.000108,2]
[336399703,1724808632872,-155.96653042,0.000108,2]
[336399704,1724808632882,-14480.08122276,0.000108,2]
[336399705,1724808632892,-1777.6298,0.000108,2]
[336399706,1724808632901,-150.0,0.00010811,2]
[336399707,1724808632911,-1500.0,0.00010816,2]
[336399708,1724808632921,-150.0,0.00010819,2]
[336399709,1724808632931,-927.27415286,0.00010852,2]
[336399710,1724808632942,-155.0,0.00010861,2]
[336399711,1724808632952,-249.55432365,0.00010862,2]
[336399712,1724808632962,-150.0,0.00010876,2]
[336399713,1724808632973,-5751.61140692,0.0001088,2]
[336399714,1724808632983,-297.90042058,0.00010888,2]
[336399715,1724808632993,-203.44849149,0.0001089,2]
[336399716,1724808633003,-167.18368,0.0001089,2]
[336399717,1724808633013,-264.85272817,0.0001089,2]
[336399718,1724808633022,-532.22321535,0.0001089,2]
[336399719,1724808633032,-289.3981,0.00010895,2]
[336399720,1724808633042,-935.00343758,0.00010899,2]
[336399721,1724808633052,-935.00343756,0.00010899,2]
[336399722,1724808633061,-935.00343756,0.00010899,2]
[336399723,1724808633071,-935.00343756,0.00010899,2]
[336399724,1724808633081,-935.00343756,0.00010899,2]
[336399725,1724808633091,-935.00343756,0.00010899,2]
[336399726,1724808633101,-935.00343756,0.00010899,2]
[336399727,1724808633112,-935.00343756,0.00010899,2]
[336399728,1724808633122,-935.00343756,0.00010899,2]
[336399729,1724808633132,-265.43439584,0.00010899,2]
[336399730,1724808633142,-9133.2657,0.000109,2]
[336399731,1724808633152,-3237.1381,0.000109,2]
[336399732,1724808633163,-45108.4968,0.000109,2]
[336399733,1724808633174,-606.9727,0.000109,2]
[336399734,1724808633184,-1636.3138,0.000109,2]
[336399735,1724808633194,-1000.0,0.000109,2]
[336399736,1724808633204,-4534.84459588,0.000109,2]
[336399737,1724808633215,-718.8618535,0.000109,2]
[336399738,1724808633225,-322.28334746,0.000109,2]
[336399739,1724808633235,-935.00343756,0.000109,2]
[336399740,1724808633248,-2847.36987831,0.000109,2]
[336399741,1724808633259,-940.13309138,0.000109,2]
[336399742,1724808633270,-658.44482805,0.000109,2]
[336399743,1724808633279,-497.63629422,0.000109,2]
[336399744,1724808633290,-188.09038923,0.000109,2]
[336399745,1724808633300,-1771.53309,0.0001094,2]
[336399746,1724808633310,-330.89872604,0.00010949,2]
[336399747,1724808633320,-341.34077296,0.00010949,2]
[336399748,1724808633330,-500.0,0.00010955,2]
[336399749,1724808633340,-200.0,0.00010959,2]
[336399750,1724808633350,-191.06,0.00010959,2]
[336399751,1724808633361,-2000.0,0.00010959,2]
[336399752,1724808633372,-150.0,0.00010959,2]
[336399753,1724808633382,-244.87,0.00010959,2]
[336399754,1724808633392,-1395.39,0.00010959,2]
[336399755,1724808633402,-204.06,0.00010959,2]
[336399756,1724808633411,-170.05,0.00010959,2]
[336399757,1724808633420,-850.29,0.00010959,2]
[336399758,1724808633431,-250.0,0.00010959,2]
[336399759,1724808633441,-500.0,0.00010964,2]
[336399760,1724808633451,-500.0,0.00010973,2]
[336399761,1724808633461,-200.0,0.00010973,2]
[336399762,1724808633471,-501.57510878,0.00010973,2]
[336399763,1724808633480,-500.0,0.00010981,2]
[336399764,1724808633490,-5800.0,0.00010982,2]
[336399765,1724808633500,-351.36632347,0.00010989,2]
[336399766,1724808633510,-500.0,0.0001099,2]
[336399767,1724808633519,-5800.0,0.00010991,2]
[336399768,1724808633529,-150.0,0.00010991,2]
[336399769,1724808633539,-201.49558063,0.00010993,2]
[336399770,1724808633548,-1616.7746689,0.00010995,2]
[336399771,1724808633558,-150.0,0.00010997,2]
[336399772,1724808633568,-150.0,0.00010997,2]
[336399773,1724808633577,-150.0,0.00010997,2]
[336399774,1724808633587,-150.0,0.00010997,2]
[336399775,1724808633598,-150.0,0.00010997,2]
[336399776,1724808633609,-190.43606967,0.00010997,2]
[336399777,1724808633619,-150.0,0.00010998,2]
[336399778,1724808633629,-150.0,0.00010998,2]
[336399779,1724808633639,-150.0,0.00010998,2]
[336399780,1724808633649,-150.0,0.00010998,2]
[336399781,1724808633659,-150.0,0.00010998,2]
[336399782,1724808633672,-3365.0213606,0.00010998,2]
[336399783,1724808633681,-5800.0,0.00010999,2]
[336399784,1724808633691,-420.0,0.00010999,2]
[336399785,1724808633701,-500.0,0.00010999,2]
[336399786,1724808633710,-500.0,0.00010999,2]
[336399787,1724808633720,-500.0,0.00010999,2]
[336399788,1724808633729,-500.0,0.00010999,2]
[336399789,1724808633739,-350.0,0.00010999,2]
[336399790,1724808633749,-500.0,0.00010999,2]
[336399791,1724808633759,-171.71896246,0.00010999,2]
[336399792,1724808633769,-615.57961656,0.00010999,2]
[336399793,1724808633778,-500.0,0.00010999,2]
[336399794,1724808633796,-500.0,0.00010999,2]
[336399795,1724808633806,-741.0,0.00011,2]
[336399796,1724808633815,-325017.8473356,0.00011,2]
[336399797,1724808634033,-1000.0,0.00011,2]
[336399798,1724808634043,-1000.0,0.00011,2]
[336399799,1724808634054,-1000.0,0.00011,2]
[336399800,1724808634064,-28856.19141979,0.00011,2]
[336399801,1724808634250,-4771.63845327,0.00011,2]
[336399802,1724808634262,-1003.2257048,0.00011,2]
[336399803,1724808634274,-1033.09125361,0.00011,2]
[336399804,1724808634285,-297.04785907,0.00011,2]
[336399805,1724808634297,-745.31368766,0.00011,2]
[336399806,1724808634308,-283.8100001,0.00011,2]
[336399807,1724808634324,-1975.73388721,0.00011,2]
[336399812,1724808638255,-155.32760263,0.00010026,2]
[336399813,1724808638264,-280.03094166,0.00010899,2]
[336399814,1724808638275,-451.8633787,0.00010899,2]
[336399815,1724808638284,-71.09617396,0.00011,2]
[336399816,1724808638295,-453.0,0.00011,2]
[336399817,1724808638306,-142.90382604,0.00011,2]
[336399818,1724808638315,-544.50223852,0.00011,2]
[336399819,1724808638326,-664.7658,0.00011,2]
[336399820,1724808638367,-132540.33113787,0.00011,2]
[336399821,1724808638378,-2547200.70477039,0.00011,2]
[336399822,1724808638497,-31381.03398779,0.00011,2]
[336399823,1724808638509,-20046.88647575,0.00011,2]
[336399824,1724808638520,-1507.57772365,0.00011,2]
[336399825,1724808638531,-703.20536157,0.00011,2]
[336399826,1724808638542,-61262.26028008,0.00011,2]
[336399827,1724808638617,-10231.82958382,0.00011,2]
[336399996,1724808640482,-181.60185662,0.000109,2]
[336399998,1724808640492,-31789.96572113,0.00011,2]
[336400000,1724808640504,-3470.13415581,0.00011,2]
[336400011,1724808640596,-1945.68974144,0.00011,2]
[336400024,1724808640726,-337.00867727,0.00011,2]
[336400026,1724808640739,-246113.67328281,0.00011,2]
[336400279,1724808643224,-155.0,0.00010566,2]
[336400284,1724808643234,-1166.69127506,0.00011,2]
[336400289,1724808643248,-10034.08847094,0.00011,2]
[336400313,1724808643370,-1240.80041627,0.00011,2]
[336400378,1724808644141,-289.10000002,0.00011,2]
[336400678,1724808647830,-155.0,9.943e-05,2]
[336400679,1724808647840,-191.27012758,0.00010995,2]
[336400681,1724808647849,-41.46164332,0.00011,2]
[336400683,1724808647860,-554.53835668,0.00011,2]
[336400685,1724808647872,-8286.33783722,0.00011,2]
[336400687,1724808647882,-321.8,0.00011,2]
[336400689,1724808647893,-11355.02239505,0.00011,2]
[336400691,1724808647904,-566.85,0.00011,2]
[336400716,1724808648389,570.33767931,0.00025,120]
[336400717,1724808667178,151.13195258,0.00025,120]
[336400718,1724808672336,576.41416192,0.00025,120]
[336400719,1724808676134,500.0,0.00025,120]
[336400720,1724808676269,350.52523707,0.00025,120]
[336400721,1724808678263,500.0,0.00025,120]
[336400722,1724808678575,500.0,0.00025,120]
[336400723,1724808678880,500.0,0.00025,120]
[336400724,1724808679179,500.0,0.00025,120]
[336400725,1724808679438,500.0,0.00025,120]
[336400726,1724808679697,499.95656981,0.00025,120]
[336400727,1724808682994,559.01204401,0.00025,120]
[336400728,1724808684300,500.0,0.00025,120]
[336400729,1724808684555,500.0,0.00025,120]
[336400730,1724808684815,367.04878129,0.00025,120]
[336400731,1724808688808,500.0,0.00025,120]
[336400732,1724808689167,500.0,0.00025,120]
[336400733,1724808689465,160.5736206,0.00025,120]
[336400743,1724808689743,500.0,0.00025,120]
[336400758,1724808690093,582.78839078,0.00025,120]
[336400821,1724808693384,314.95683458,0.00025,120]
[336400822,1724808705341,500.0,0.00025,120]
[336400823,1724808705620,374.1129649,0.00025,120]
[336400824,1724808724196,519.06999474,0.00025,120]
[336400825,1724808729561,526.83731805,0.00025,120]
[336400826,1724808732977,506.79619743,0.00025,120]
[336400827,1724808737330,509.64680072,0.00025,120]
[336400828,1724808739405,521.8108996,0.00025,120]
[336400829,1724808741951,544.00425037,0.00025,120]
[336400830,1724808742971,500.0,0.00025,120]
[336400831,1724808743234,456.71691343,0.00025,120]
[336400832,1724808744242,511.08430549,0.00025,120]
[336400833,1724808747259,500.0,0.00025,120]
[336400834,1724808747581,500.0,0.00025,120]
[336400835,1724808747800,500.0,0.00025,120]
[336400836,1724808748102,500.0,0.00025,120]
[336400837,1724808748350,500.0,0.00025,120]
[336400838,1724808748439,504.67881381,0.00025,120]
[336400839,1724808748615,500.0,0.00025,120]
[336400840,1724808748874,500.0,0.00025,120]
[336400841,1724808749155,384.8919664,0.00025,120]
[336400842,1724808751302,500.0,0.00025,120]
[336400843,1724808751575,500.0,0.00025,120]
[336400844,1724808751882,500.0,0.00025,120]
[336400845,1724808752474,500.0,0.00025,120]
[336400846,1724808752750,500.0,0.00025,120]
[336400847,1724808753376,612.15361211,0.00025,120]
[336400848,1724808755353,506.22399838,0.00025,120]
[336400849,1724808756791,252.07031928,0.00025,120]
[336400850,1724808758002,500.0,0.00025,120]
[336400851,1724808758346,549.3300504,0.00025,120]
[336400852,1724808759007,500.0,0.00025,120]
[336400853,1724808759529,500.0,0.00025,120]
[336400854,1724808759585,504.64211625,0.00025,120]
[336400855,1724808759629,500.0,0.00025,120]
[336400856,1724808759789,500.0,0.00025,120]
[336400857,1724808760074,500.0,0.00025,120]
[336400858,1724808760363,500.0,0.00025,120]
[336400859,1724808760607,500.0,0.00025,120]
[336400860,1724808760843,500.0,0.00025,120]
[336400861,1724808760884,500.0,0.00025,120]
[336400862,1724808761112,500.0,0.00025,120]
[336400863,1724808761193,500.0,0.00025,120]
[336400864,1724808761393,500.0,0.00025,120]
[336400865,1724808761480,500.0,0.00025,120]
[336400866,1724808761730,500.0,0.00025,120]
[336400867,1724808761771,500.0,0.00025,120]
[336400868,1724808762011,476.48182925,0.00025,120]
[336400869,1724808762053,500.0,0.00025,120]
[336400870,1724808762429,500.0,0.00025,120]
[336400871,1724808762690,460.97982551,0.00025,120]
[336400872,1724808762731,521.80778323,0.00025,120]
[336400873,1724808763067,559.0446712,0.00025,120]
[336400874,1724808764088,502.77477718,0.00025,120]
[336400875,1724808765747,506.65959781,0.00025,120]
[336400876,1724808766197,153.92423094,0.00025,120]
[336400877,1724808769237,508.65384314,0.00025,120]
[336400878,1724808769818,746.79,0.00025,120]
[336400879,1724808770074,746.79,0.00025,120]
[336400880,1724808770130,520.88384333,0.00025,120]
[336400881,1724808770392,746.79,0.00025,120]
[336400882,1724808770626,746.79,0.00025,120]
[336400883,1724808770885,746.79,0.00025,120]
[336400884,1724808771144,746.79,0.00025,120]
[336400885,1724808771503,746.79,0.00025,120]
[336400886,1724808771760,746.79,0.00025,120]
[336400887,1724808772024,746.79,0.00025,120]
[336400888,1724808772283,746.79,0.00025,120]
[336400889,1724808772536,746.79,0.00025,120]
[336400890,1724808772796,746.79,0.00025,120]
[336400891,1724808773105,746.79,0.00025,120]
[336400892,1724808773367,746.79,0.00025,120]
[336400893,1724808773721,746.79,0.00025,120]
[336400894,1724808774050,505.51396522,0.00025,120]
[336400895,1724808774237,746.79,0.00025,120]
[336400896,1724808774515,746.79,0.00025,120]
[336400897,1724808774794,746.79,0.00025,120]
[336400898,1724808775039,508.50314431,0.00025,120]
[336400899,1724808775124,500.0,0.00025,120]
[336400900,1724808775164,746.79,0.00025,120]
[336400901,1724808775382,746.79,0.00025,120]
[336400902,1724808775431,500.0,0.00025,120]
[336400903,1724808775659,746.79,0.00025,120]
[336400904,1724808775757,500.0,0.00025,120]
[336400905,1724808775799,515.51736479,0.00025,120]
[336400906,1724808775915,746.79,0.00025,120]
[336400907,1724808776074,500.0,0.00025,120]
[336400908,1724808776220,746.79,0.00025,120]
[336400909,1724808776403,500.0,0.00025,120]
[336400910,1724808776484,747.0067884,0.00025,120]
[336400911,1724808776670,500.0,0.00025,120]
[336400912,1724808776993,500.0,0.00025,120]
[336400913,1724808777378,500.0,0.00025,120]
[336400914,1724808777670,500.0,0.00025,120]
[336400915,1724808777961,500.0,0.00025,120]
[336400916,1724808778534,500.0,0.00025,120]
[336400917,1724808778575,235.37878158,0.00025,120]
[336400918,1724808778729,500.0,0.00025,120]
[336400919,1724808778994,500.0,0.00025,120]
[336400920,1724808779266,500.0,0.00025,120]
[336400921,1724808779671,500.0,0.00025,120]
[336400922,1724808779933,500.0,0.00025,120]
[336400923,1724808780198,500.0,0.00025,120]
[336400924,1724808780408,504.58098598,0.00025,120]
[336400925,1724808780514,500.0,0.00025,120]
[336400926,1724808780772,500.0,0.00025,120]
[336400927,1724808780902,531.17626519,0.00025,120]
[336400928,1724808781045,500.0,0.00025,120]
[336400929,1724808781374,500.0,0.00025,120]
[336400930,1724808781638,500.0,0.00025,120]
[336400931,1724808781912,416.16229768,0.00025,120]
[336400932,1724808782445,500.0,0.00025,120]
[336400933,1724808782657,504.51194954,0.00025,120]
[336400934,1724808782758,500.0,0.00025,120]
[336400935,1724808783110,500.0,0.00025,120]
[336400936,1724808783449,500.0,0.00025,120]
[336400937,1724808783772,500.0,0.00025,120]
[336400938,1724808784068,500.0,0.00025,120]
[336400939,1724808784340,500.0,0.00025,120]
[336400940,1724808784489,500.0,0.00025,120]
[336400941,1724808784637,500.0,0.00025,120]
[336400942,1724808784835,500.0,0.00025,120]
[336400943,1724808784988,500.0,0.00025,120]
[336400944,1724808785098,529.87003345,0.00025,120]
[336400945,1724808785141,500.0,0.00025,120]
[336400946,1724808785317,500.0,0.00025,120]
[336400947,1724808785368,500.0,0.00025,120]
[336400948,1724808785597,500.0,0.00025,120]
[336400949,1724808785674,500.0,0.00025,120]
[336400950,1724808785824,500.0,0.00025,120]
[336400951,1724808785896,500.0,0.00025,120]
[336400952,1724808785944,500.0,0.00025,120]
[336400953,1724808786138,435.21129783,0.00025,120]
[336400954,1724808786187,389.25813027,0.00025,120]
[336400955,1724808786301,500.0,0.00025,120]
[336400956,1724808786582,500.0,0.00025,120]
[336400957,1724808786855,500.0,0.00025,120]
[336400958,1724808787318,500.0,0.00025,120]
[336400959,1724808787615,500.0,0.00025,120]
[336400960,1724808787919,218.83651695,0.00025,120]
[336400961,1724808789025,513.66746957,0.00025,120]
[336400962,1724808790262,518.32064705,0.00025,120]
[336400963,1724808791491,504.14693374,0.00025,120]
[336400964,1724808791749,505.97124675,0.00025,120]
[336400965,1724808792171,500.0,0.00025,120]
[336400966,1724808792370,402.07824584,0.00025,120]
[336400967,1724808792428,627.31999517,0.00025,120]
[336400968,1724808794141,509.32082297,0.00025,120]
[336400969,1724808795007,500.0,0.00025,120]
[336400970,1724808795261,514.38826695,0.00025,120]
[336400971,1724808795320,500.0,0.00025,120]
[336400972,1724808795616,175.9365387,0.00025,120]
[336400973,1724808795738,522.3375469,0.00025,120]
[336400974,1724808795780,514.66376378,0.00025,120]
[336400975,1724808797782,500.0,0.00025,120]
[336400976,1724808797877,503.04291339,0.00025,120]
[336400977,1724808797927,523.93514775,0.00025,120]
[336400978,1724808798040,500.0,0.00025,120]
[336400979,1724808798296,506.68000016,0.00025,120]
[336400980,1724808798345,500.0,0.00025,120]
[336400981,1724808798586,500.0,0.00025,120]
[336400982,1724808799061,500.0,0.00025,120]
[336400983,1724808799108,566.66916546,0.00025,120]
[336400984,1724808799189,500.0,0.00025,120]
[336400985,1724808799541,229.01368257,0.00025,120]
[336400986,1724808800185,509.53690956,0.00025,120]
[336400987,1724808800400,507.63537996,0.00025,120]
[336400988,1724808801309,511.48517196,0.00025,120]
[336400989,1724808802014,500.0,0.00025,120]
[336400990,1724808802302,539.13204371,0.00025,120]
[336400991,1724808803084,515.63343304,0.00025,120]
[336400992,1724808803322,507.07341624,0.00025,120]
[336400993,1724808804445,500.0,0.00025,120]
[336400994,1724808804483,503.99235282,0.00025,120]
[336400995,1724808804562,500.0,0.00024932,120]
[336400996,1724808804760,590.81746008,0.00025,120]
[336400997,1724808808621,550.08962679,0.00025,120]
[336400998,1724808813890,500.0,0.00025,120]
[336400999,1724808814226,538.94531561,0.00025,120]
[336401000,1724808814961,503.52922763,0.00025,120]
[336401001,1724808816574,500.0,0.00025,120]
[336401002,1724808816859,533.98286868,0.00025,120]
[336401003,1724808816909,500.0,0.00025,120]
[336401004,1724808817285,514.76591326,0.00025,120]
[336401005,1724808818319,342.10108772,0.00025,120]
[336401006,1724808818363,502.93643572,0.00025,120]
[336401007,1724808819495,500.0,0.00025,120]
[336401008,1724808819658,500.0,0.00025,120]
[336401009,1724808819925,500.0,0.00025,120]
[336401010,1724808820222,500.0,0.00025,120]
[336401011,1724808820508,500.0,0.00025,120]
[336401012,1724808820769,500.0,0.00025,120]
[336401013,1724808820995,500.0,0.00025,120]
[336401014,1724808821268,215.82709772,0.00025,120]
[336401015,1724808821434,316.77949718,0.00025,120]
[336401016,1724808821547,503.9338222,0.00025,120]
[336401017,1724808822442,502.0178818,0.00025,120]
[336401018,1724808822676,521.58015342,0.00025,120]
[336401019,1724808824013,502.50018081,0.00025,120]
[336401020,1724808827124,509.53091854,0.00025,120]
[336401021,1724808827567,757.06,0.00025,120]
[336401022,1724808827883,757.06,0.00025,120]
[336401023,1724808827969,502.94541823,0.00025,120]
[336401024,1724808828175,757.06,0.00025,120]
[336401025,1724808828452,757.06,0.00025,120]
[336401026,1724808828829,757.06,0.00025,120]
[336401027,1724808829118,757.06,0.00025,120]
[336401028,1724808829624,757.06,0.00025,120]
[336401029,1724808829744,757.06,0.00025,120]
[336401030,1724808830019,757.06,0.00025,120]
[336401031,1724808830293,757.06,0.00025,120]
[336401032,1724808830588,757.06,0.00025,120]
[336401033,1724808830821,506.06644118,0.00025,120]
[336401034,1724808830867,757.06,0.00025,120]
[336401035,1724808831142,757.06,0.00025,120]
[336401036,1724808831415,757.06,0.00025,120]
[336401037,1724808831523,505.11863756,0.00025,120]
[336401038,1724808831774,757.06,0.00025,120]
[336401039,1724808832033,757.06,0.00025,120]
[336401040,1724808832878,757.06,0.00025,120]
[336401041,1724808833150,757.06,0.00025,120]
[336401042,1724808833437,757.06,0.00025,120]
[336401043,1724808833478,502.89103254,0.00025,120]
[336401044,1724808833550,500.0,0.00025,120]
[336401045,1724808833760,757.06,0.00025,120]
[336401046,1724808833825,500.0,0.00025,120]
[336401047,1724808834028,757.06,0.00025,120]
[336401048,1724808834068,589.83771064,0.00025,120]
[336401049,1724808834107,500.0,0.00025,120]
[336401050,1724808834286,757.06,0.00025,120]
[336401051,1724808834343,436.59114202,0.00025,120]
[336401052,1724808834588,757.06,0.00025,120]
[336401053,1724808834866,757.17084718,0.00025,120]
[336401054,1724808837215,511.64040918,0.00025,120]
[336401055,1724808837583,500.0,0.00025,120]
[336401056,1724808837861,500.0,0.00025,120]
[336401057,1724808838082,500.0,0.00025,120]
[336401058,1724808838143,500.0,0.00025,120]
[336401059,1724808838260,505.3601389,0.00025,120]
[336401060,1724808838341,500.0,0.00025,120]
[336401061,1724808838411,500.0,0.00025,120]
[336401062,1724808838601,500.0,0.00025,120]
[336401063,1724808838682,500.0,0.00025,120]
[336401064,1724808838936,500.0,0.00025,120]
[336401065,1724808838979,161.79936729,0.00025,120]
[336401066,1724808839211,500.0,0.00025,120]
[336401067,1724808839447,509.32154176,0.00025,120]
[336401068,1724808839488,500.0,0.00025,120]
[336401069,1724808839812,500.0,0.00025,120]
[336401070,1724808839855,572.49754576,0.00025,120]
[336401071,1724808839919,539.80425645,0.00025,120]
[336401072,1724808840016,500.0,0.00025,120]
[336401073,1724808840405,500.0,0.00025,120]
[336401074,1724808840668,313.67970694,0.00025,120]
[336401075,1724808843403,500.0,0.00025,120]
[336401076,1724808843482,507.94315461,0.00025,120]
[336401077,1724808843638,477.49125529,0.00025,120]
[336401078,1724808843749,500.0,0.00025,120]
[336401079,1724808844039,444.54096351,0.00025,120]
[336401080,1724808845612,503.66413918,0.00025,120]
[336401081,1724808848415,514.05347575,0.00025,120]
[336401082,1724808850055,520.35977342,0.00025,120]
[336401083,1724808853323,503.40321966,0.00025,120]
[336401085,1724808855566,503.31506431,0.00025,120]
[336401086,1724808859448,500.0,0.00025,120]
[336401087,1724808859715,546.49660904,0.00025,120]
[336401088,1724808860230,500.0,0.00025,120]
[336401089,1724808860521,500.0,0.00025,120]
[336401090,1724808860823,460.90523274,0.00025,120]
[336401091,1724808862059,500.0,0.00025,120]
[336401092,1724808862553,505.53448671,0.00025,120]
[336401094,1724808866501,514.01218672,0.00025,120]
[336401095,1724808866545,500.0,0.00025,120]
[336401096,1724808866843,500.0,0.00025,120]
[336401097,1724808867093,500.0,0.00025,120]
[336401098,1724808867359,553.20739189,0.00025,120]
[336401099,1724808869419,500.0,0.00025,120]
[336401100,1724808869674,500.0,0.00025,120]
[336401101,1724808870470,500.0,0.00025,120]
[336401102,1724808870588,500.0,0.00025,120]
[336401103,1724808870839,500.0,0.00025,120]
[336401104,1724808871178,510.81582823,0.00025,120]
[336401105,1724808871452,318.66894667,0.00025,120]
[336401106,1724808877800,500.0,0.00025,120]
[336401107,1724808878286,500.0,0.00025,120]
[336401108,1724808878540,500.0,0.00025,120]
[336401109,1724808878798,500.9671874,0.00025,120]
[336401110,1724808879598,510.53115289,0.00025,120]
[336401111,1724808880838,500.0,0.00025,120]
[336401112,1724808881102,500.0,0.00025,120]
[336401113,1724808881365,500.0,0.00025,120]
[336401114,1724808881595,510.72404002,0.00025,120]
[336401115,1724808881635,519.64878191,0.00025,120]
[336401116,1724808883750,500.0,0.00025,120]
[336401117,1724808884015,500.0,0.00025,120]
[336401118,1724808884117,500.0,0.00025,120]
[336401119,1724808884305,500.0,0.00025,120]
[336401120,1724808884395,500.0,0.00025,120]
[336401121,1724808884568,503.85053937,0.00025,120]
[336401122,1724808884658,500.0,0.00025,120]
[336401123,1724808884917,500.0,0.00025,120]
[336401124,1724808885198,500.0,0.00025,120]
[336401125,1724808885461,500.0,0.00025,120]
[336401126,1724808885863,500.0,0.00025,120]
[336401127,1724808886014,508.89845758,0.00025,120]
[336401128,1724808886131,500.0,0.00025,120]
[336401129,1724808886419,500.0,0.00025,120]
[336401130,1724808886705,500.0,0.00025,120]
[336401131,1724808887010,500.0,0.00025,120]
[336401132,1724808887282,500.0,0.00025,120]
[336401133,1724808887545,500.0,0.00025,120]
[336401134,1724808887837,500.0,0.00025,120]
[336401135,1724808888123,500.0,0.00025,120]
[336401136,1724808888383,451.21732921,0.00025,120]
[336401137,1724808888746,500.0,0.00025,120]
[336401138,1724808889100,500.0,0.00025,120]
[336401139,1724808889374,500.0,0.00025,120]
[336401140,1724808889650,532.19077517,0.00025,120]
[336401141,1724808892193,500.0,0.00025,120]
[336401142,1724808892467,500.0,0.00025,120]
[336401143,1724808892749,500.0,0.00025,120]
[336401144,1724808893020,500.0,0.00025,120]
[336401145,1724808893197,500.0,0.00025,120]
[336401146,1724808893279,500.0,0.00025,120]
[336401147,1724808893479,500.0,0.00025,120]
[336401148,1724808893536,500.0,0.00025,120]
[336401149,1724808893792,500.0,0.00025,120]
[336401150,1724808893835,500.0,0.00025,120]
[336401151,1724808893890,548.92602567,0.00025,120]
[336401152,1724808894098,487.83056744,0.00025,120]
[336401153,1724808894150,500.0,0.00025,120]
[336401154,1724808894555,500.0,0.00025,120]